Cogmind - Beta 11 @@@ ROGUE MODE // 2022.03.28 @ 08:44:16 Player: Iceblade02 Result: Destroyed by as-02312 with Assembled Maul Performance ------------- Evolutions (0) 0 Regions Visited (2) 400 Robots Destroyed (8) 40 Value Destroyed (248) 248 Prototype IDs (0) 0 Alien Tech Used (0) 0 Bonus (0) 0 TOTAL SCORE: 688 Bonus ------- None Cogmind --------- Core Integrity 0/250 Matter 300/300 Energy 110/125 System Corruption 0% Temperature Cool (60) Movement Rolling (110) Ox2 Location -10/Mines Parts ------- > --- POWER (1) -------- Light Ion Engine > --- PROPULSION (2) --- Wheel Flight Unit > --- UTILITY (2) ------ Improved Heat Sink Large Storage Unit > --- WEAPON (2) ------- Beam Cannon Beam Cannon > --- INVENTORY (15) --- Flight Unit Flight Unit Flight Unit Compact Matter Pod (150) Visual Processing Unit Utility Shielding Medium Laser Datajack Peak State ------------ > --- POWER ------------ Light Nuclear Core > --- PROPULSION ------- Compact Wheel Compact Wheel > --- UTILITY ---------- Improved Heat Sink Large Storage Unit > --- WEAPON ----------- EM Pulse Gun Makeshift Shrapnel Gun > --- INVENTORY -------- Light Ion Engine Wheel Wheel Flight Unit Flight Unit Flight Unit Flight Unit Compact Matter Pod Visual Processing Unit Utility Shielding Medium Laser Beam Cannon Beam Cannon Datajack [Rating: 15] Favorites ----------- Power Ion Engine Engine Ion Engine Power Core Light Nuclear Core Propulsion Compact Wheel Wheel Compact Wheel Flight Unit Flight Unit Utility Improved Heat Sink Device Improved Heat Sink Storage Large Storage Unit Weapon EM Pulse Gun Energy Gun EM Pulse Gun Energy Cannon Beam Cannon Ballistic Gun Makeshift Shrapnel Gun Build | -11 -10 -10 ------- Run | Scr Mat Min Slots Evolved . | . . . Power . | . . . Propulsion . | . . . Utility . | . . . Weapon . | . . . Parts Attached 20 | 4 6 10 Power 3 | 1 . 2 Engine 2 | 1 . 1 Core 1 | . . 1 Reactor . | . . . Propulsion 6 | 1 2 3 Treads . | . . . Leg . | . . . Wheel 5 | 1 2 2 Hover . | . . . Flight 1 | . . 1 Utility 4 | 1 3 . Device 2 | . 2 . Storage 2 | 1 1 . Processor . | . . . Hackware . | . . . Protection . | . . . Artifact . | . . . Weapon 7 | 1 1 5 Energy Gun 3 | 1 1 1 Energy Cannon 2 | . . 2 Ballistic Gun 2 | . . 2 Ballistic Cannon . | . . . Launcher . | . . . Special Weapon . | . . . Impact Weapon . | . . . Slashing Weapon . | . . . Piercing Weapon . | . . . Special Melee Weapon . | . . . Unidentified Prototypes . | . . . Parts Lost 7 | . . 7 Power 1 | . . 1 Propulsion 3 | . . 3 Utility . | . . . Weapon 3 | . . 3 Highest Loss Streak 6 | . . 6 To Critical Strikes . | . . . Average Slot Usage (%) 97 | . 98 95 Engine 13 | . 14 12 Wheel 26 | . 28 25 Device 13 | . 13 14 Storage 14 | . 14 14 Energy Gun 23 | . 27 19 Energy Cannon 1 | . . 3 Ballistic Gun 1 | . . 2 Naked Turns . | . . . Heaviest Build 30 | 12 30 30 Greatest Support 32 | 10 32 32 Greatest Overweight (x) 2 | 1 . 2 Average Overweight (x) . | . . . Largest Inventory Capacity 15 | 8 15 15 Average Capacity 12 | 7 11 15 Most Carried 15 | 6 14 15 Average Carried 10 | 4 9 13 Final Capacity 15 | 8 15 15 Final Carried 14 | 6 14 8 Class Distribution -------------------- 100% | Mutant Dominant Class ---------------- Mutant | -10/Materials Mutant | -10/Mines Resources | -11 -10 -10 ----------- Run | Scr Mat Min Matter Collected 385 | 203 97 85 Remotely . | . . . Salvage Created 366 | . 256 110 Parts 26 | . 18 8 Haulers Intercepted 1 | . 1 . Recyclers Shooed . | . . . Parts Field Recycled . | . . . Retrieved Matter . | . . . Parts Self-Destructed . | . . . Prevented . | . . . Kills | -11 -10 -10 ------- Run | Scr Mat Min Combat Hostiles Destroyed 6 | . 4 2 Guns 4 | . 2 2 AOE 2 | . 2 . Classes Destroyed 3 | . 3 . Hauler 1 | . 1 . Watcher 1 | . 1 . Grunt 6 | . 4 2 Best Kill Streak 4 | . 4 2 Combat Bots Only 4 | . 4 2 Max Kills in Single Turn 2 | . 2 1 Gunslinging . | . . . Exploded 2 | . 2 . Melee . | . . . Uniques/NPCs Destroyed . | . . . Combat | -11 -10 -10 -------- Run | Scr Mat Min Damage Taken 627 | . 68 559 Core 257 | . 27 230 Absorbed by Shields . | . . . Core Remaining (%) 100 | 100 . . Volleys Fired 21 | . 9 12 Largest 2 | . 2 2 Hottest 120 | . 80 120 Shots Fired 40 | . 18 22 Gun 30 | . 18 12 Cannon 10 | . . 10 Launcher . | . . . Special . | . . . Kinetic . | . . . Thermal 10 | . . 10 Explosive . | . . . Electromagnetic 30 | . 18 12 Robot Hit Streak 4 | . 4 4 Robot Miss Streak 4 | . 2 4 Penetration Max . | . . . Secondary Targets . | . . . Shots Hit Robots 20 | . 10 10 Core Hits 14 | . 8 6 Critical Kills . | . . . Critical Parts Destroyed . | . . . Critical Strikes . | . . . Melee Attacks . | . . . Impact . | . . . Slashing . | . . . Piercing . | . . . Sneak Attacks . | . . . Combat Hostiles . | . . . Follow-up Attacks . | . . . Damage Inflicted 335 | . 191 144 Guns 219 | . 128 91 Cannons 53 | . . 53 Explosions 63 | . 63 . Melee . | . . . Ramming . | . . . Kinetic . | . . . Thermal 116 | . 63 53 Explosive . | . . . Electromagnetic 219 | . 128 91 Impact . | . . . Slashing . | . . . Piercing . | . . . Highest Corruption . | . . . Average Corruption . | . . . Corruption Purged . | . . . Corruption Blocked . | . . . Overload Shots . | . . . Overflow Damage . | . . . Projectiles . | . . . Explosions . | . . . Melee . | . . . Knockbacks . | . . . Impact . | . . . Kinetic . | . . . Secondary . | . . . Self-Inflicted Damage . | . . . Shots . | . . . Rammed . | . . . Targets Rammed . | . . . Kicked . | . . . Crushed . | . . . Highest Temperature 60 | . 2 60 Average Temperature 19 | . 2 22 Received Heat Transfer 111 | . 24 87 Siege Activations . | . . . Robots Corrupted . | . . . Combat Hostiles . | . . . Parts Fried . | . . . Impact Corruptions . | . . . Robots Melted . | . . . Combat Hostiles . | . . . Parts Melted . | . . . Heat Transferred 211 | . 100 111 Parts Sabotaged . | . . . Parts Stolen . | . . . Parts Stripped . | . . . Power Chain Reactions 1 | . 1 . Missiles Intercepted . | . . . Alert | -11 -10 -10 ------- Run | Scr Mat Min Peak Influence 162 | . 162 60 Initial . | . . . Average 50 | . 90 11 Maximum Alert Level . | . . . Low Security (%) 100 | 100 100 100 Level 1 . | . . . Level 2 . | . . . Level 3 . | . . . Level 4 . | . . . Level 5 . | . . . High Security . | . . . Max Security . | . . . Squads Dispatched . | . . . Investigation . | . . . Extermination . | . . . Reinforcement . | . . . Assault . | . . . Garrison . | . . . Intercept . | . . . Searches Triggered . | . . . Construction Impeded . | . . . Haulers Reinforced . | . . . Active Scanning Responses . | . . . Cargo Convoy Interrupts . | . . . Stealth | -11 -10 -10 --------- Run | Scr Mat Min Distress Signals 1 | . 1 . Communications Jammed . | . . . Distress Signals . | . . . Times Spotted 15 | . 6 9 Peak Tracking Total 7 | . 4 7 Tactical Retreats 1 | . . 1 Traps | -11 -10 -10 ------- Run | Scr Mat Min Traps Triggered 1 | . 1 . Indirectly . | . . . Trap Hack Attempts . | . . . Triggered . | . . . Disarmed . | . . . Reprogrammed . | . . . Reused . | . . . Traps Extracted . | . . . Installed . | . . . Triggered . | . . . Machines | -11 -10 -10 ---------- Run | Scr Mat Min Machines Disabled . | . . . Max in Single Turn . | . . . Machines Sabotaged . | . . . Garrisons Compromised . | . . . Overloaded Fab Kills . | . . . Hacking | -11 -10 -10 --------- Run | Scr Mat Min Machines Accessed 4 | . 4 . Terminals 4 | . 4 . Fabricators . | . . . Repair Stations . | . . . Recycling Units . | . . . Scanalyzers . | . . . Garrison Access . | . . . Total Hacks 12 | . 12 . Successful 6 | . 6 . Failed 5 | . 5 . Catastrophic 1 | . 1 . Database Lockouts 1 | . 1 . Manual 8 | . 8 . Terminals 12 | . 12 . Fabricators . | . . . Repair Stations . | . . . Recycling Units . | . . . Scanalyzers . | . . . Garrison Access . | . . . Terminal Hacks 3 | . 3 . Part Schematic 1 | . 1 . Branch Access Points 1 | . 1 . Registered Components 1 | . 1 . Fabricator Hacks . | . . . Repair Station Hacks . | . . . Recycling Unit Hacks . | . . . Scanalyzer . | . . . Garrison Access Hacks . | . . . Unauthorized Hacks 3 | . 3 . Terminals 3 | . 3 . Botnet 3 | . 3 . Fabricators . | . . . Repair Stations . | . . . Recycling Units . | . . . Scanalyzers . | . . . Garrison Access . | . . . Data Cores Recovered . | . . . Used . | . . . Hacking Detections 3 | . 3 . Full Trace Events . | . . . Feedback Events . | . . . Feedback Blocked . | . . . Robot Schematics Acquired . | . . . Robots Built . | . . . Authchips . | . . . Time . | . . . Total Robot Build Rating . | . . . Part Schematics Acquired 1 | . 1 . Parts Built . | . . . Authchips . | . . . Time . | . . . Total Part Build Rating . | . . . Parts Repaired . | . . . Time . | . . . Parts Recycled . | . . . Recycled Matter . | . . . Retrieved Matter . | . . . Retrieved Components . | . . . Parts Scanalyzed . | . . . Part Schematics Acquired . | . . . Parts Damaged . | . . . Bothacking | -11 -10 -10 ------------ Run | Scr Mat Min Used RIF Installer . | . . . Robots Hacked . | . . . Non-combat . | . . . Combat . | . . . Robot Hacks Applied . | . . . Relay Couplers Released . | . . . Fabnet Peak Effective % . | . . . Robots Rewired . | . . . Allies Hacked . | . . . Hacks Repelled . | . . . Allies | -11 -10 -10 -------- Run | Scr Mat Min Total Allies . | . . . Largest Group . | . . . Highest-Rated Group . | . . . Highest-Rated Ally . | . . . Total Orders . | . . . Ally Attacks . | . . . Total Damage . | . . . Kills . | . . . Allies Corrupted . | . . . Allies Melted . | . . . Intel | -11 -10 -10 ------- Run | Scr Mat Min Robot Analysis Total . | . . . Derelict Logs Recovered 2 | . . 2 Drone Launches . | . . . Drone Recoveries . | . . . Exploration | -11 -10 -10 ------------- Run | Scr Mat Min Turns Passed 905 | 51 458 396 Spaces Moved 740 | 46 370 324 Core 5 | 5 . . Treads . | . . . Legs . | . . . Wheels 735 | 41 370 324 Hover . | . . . Flight . | . . . Fastest Speed 50 | 50 90 90 Average Speed 97 | 86 95 101 Slowest Speed 115 | 95 100 115 Overloaded Moves . | . . . Propulsion Burnouts . | . . . Robots Hopped . | . . . Cave-ins Triggered . | . . . Exploration Rate (%) 40 | 4 47 69 Regions Visited 2 Branch Regions 1 Pre-discovered Areas 2 | . . 2 Known Exits Taken 1 | . 1 . Unknown Exits Taken 1 | 1 . . Scrap Searched 2 | . . 2 Spaces Dug . | . . . Terrain Destroyed 7 | . 7 . Melee . | . . . Projectile . | . . . AOE 7 | . 7 . Terrain Rammed . | . . . Walls Destroyed . | . . . Machines Disabled . | . . . Actions | -11 -10 -10 --------- Run | Scr Mat Min Total 884 | 55 458 371 Wait 75 | . 56 19 Move 738 | 45 369 324 Hop . | . . . Pick Up 22 | 6 13 3 Fast Attach 6 | 4 1 1 Attach 9 | . 2 7 Detach . | . . . Swap 5 | . 3 2 Drop 8 | . 5 3 Fire 21 | . 9 12 Melee . | . . . Ram . | . . . Kick . | . . . Crush . | . . . Escape Stasis . | . . . Rewire . | . . . Trap . | . . . Miscellaneous . | . . . Route ------- -11/Scrapyard -10/Materials (discovered 3 exits: [*Mat] / *Min x2) -10/Mines (discovered 1 exit: [*Mat]) History --------- Turn | Location | Event 33 | -11/Scrapyard | Discovered new exit (range 12) 52 | -11/Scrapyard | Entered Materials 105 | -10/Materials | Identified exit to Mines 307 | -10/Materials | Build established: Mutant 321 | -10/Materials | Discovered new exit (range 3) 339 | -10/Materials | Central database locked down 510 | -10/Materials | Entered Mines 580 | -10/Mines | A weapon hastily lodged in a ceiling crevice suddenly fell to the ground 628 | -10/Mines | Learned location of Zion (-6) 795 | -10/Mines | Discovered new exit (range 6) 819 | -10/Mines | Assembled infested the area 824 | -10/Mines | Assisted by a Guerilla fighting off Assembled 831 | -10/Mines | Core integrity fell below 50% 862 | -10/Mines | Lost 6 parts (1p3n2w) 904 | -10/Mines | Core integrity fell below 20% 906 | -10/Mines | Destroyed by as-02312 with Assembled Maul Last Messages --------------- 00826_ Com. Wheel destroyed. 00827_ The unstable cave ceiling collapses. 00827_ T-07 Excavator destroyed. 00828_ Lgt. Nuclear Core destroyed. 00828_ Mak. Shrapnel Gun destroyed. 00829_ Wheel destroyed. 00830_ The unstable cave ceiling collapses. 00831_ Com. Wheel destroyed. 00835_ The unstable cave ceiling collapses. 00845_ as-61960 destroyed. 00884_ Acquired 50 matter. 00885_ R-06 Scavenger collects Sml. Storage Unit. 00887_ R-06 Scavenger collects Com. Wheel. 00890_ as-02312 sneak attacks. 00890_ R-06 Scavenger system corrupted by crushing effect. 00890_ R-06 Scavenger knocked back. 00890_ Searching scrap... 00890_ Found Wheel. 00890_ Found 34 Matter. 00891_ R-06 Scavenger system terminally corrupted. Map ----- +----------------------------------------------------+ | ???????????????# #????# #?????????????? | | ??????????????? #????# < #?????????????? | | ??????????????## #????# #?####????????? | | ######?????????# #????# ### ##???????? | | #?????????# ????# " ## #???????? | | #### #?????????####????###% ## #???????? | | ???# #??????????????????#" #???????? | | ???# #???????????????????# #???????? | | ???# #???????????????????# *% ####?????? | | ???# #???????????????????# #?????? | | ???# #???????????????????# # ##????? | | ???# #????????????????????# ##???? | | ???# #????????????????????# # # #???? | | ???# #????????????????????# ## #???? | | ???# #???????????????????? # # ## #???? | | ???# #????????????????????### ##??? | | ???# #?????????????????????## ##?? | | #### #????????????????????## #?? | | #????????????????????# #?? | | #???????????????????## #?? | | ### #???????????????????# # # # ##?? | | ??# #???????????????????# # ##??? | | ??# #??????????????????## # # ##???? | | ??# ##?????????????????? # # #????? | | ??#%! #?????????????# #### ## # #????? | | ??#! #????????????# t@ # #????? | | ??# ??????????#####a! # #????? | | ??## ###????????????# =%* =! # #????? | | ???? #??????????????# = % # #####? | | ???? ?????????##### %* ## #? | | ???? ##????????# < ####### #? | | ???? #?????? ### %! ###??# #? | | ???? ??????##?????# ##?# #? | | ???? ????????????### ### #? | | ???? ?????????????### % #? | | ????? #???????????????## #? | | ????? ##??????????????# #######? | | ?????######???????????????## ###??????? | | ???????????????????????????# #####????????? | | ???????????????????????????# #????????????? | | ???????????????????????????# #????????????? | | ??????????????????????????? #????????????? | | ?????????????????????????? ?????????????? | | ????????????????????????? ?????????????? | | ????????????????????????? ?????????????? | | ???????????????????????????? ?????????????? | | ???????????????????????????????????????????? | | ???????????????????????????????????????????? | | ???????????????????????????????????????????? | | ???????????????????????????????????????????? | +----------------------------------------------------+ Best States ------------- Heat Dissipation 39 Energy Generation 14 Energy Capacity 250 Matter Stores 300 Matter Capacity 300 Sight Range 16 Terrain Scan Density 10 Evasion (%) 42 Item Schematics ----------------- Flight Unit | -10/Materials | Hacked Robot Schematics ------------------ None Fabricated ------------ Nothing Alien Tech Used ----------------- None Achievements -------------- None Challenges ------------ None Game ------ Seed ProtonScatterSuite Manual? 0 Play Time 00:15:38 Cumulative 19.9 hours Start 2022.03.28 @ 08:29:39 End 2022.03.28 @ 08:44:16 Sessions 1 Manual Loads 0 Difficulty Rogue Special Mode None Game No. 15 Rogue 15 Adventurer 0 Explorer 0 Win Type - Total 0 Types 0/0/0/0/0/0/0/0/0 Lore% 19 Gallery% 23 Achievement% 26 Wizard Run 0 Options --------- ASCII 0 Keyboard 0 Movement Arrows Keybinds 0 Fullscreen 1 Font 24/Smallcaps Map View 76x50 Tactical HUD 1 Map Filters NONE Filters NONE Steam 1 RUN: 45675f4a-3a9e-47f2-88b8-750552170cd5